bitfinex-derivatives/quotes_ETHF0:USTF0_20260125
["timestamp","ask_amount","ask_price","bid_price","bid_amount"]
[1769312880437,4.37691478,2940.4,2938.7,0.14756508]
[1769312880639,4.23961396,2940.3,2938.7,0.14756508]
[1769312880940,4.23961396,2940.3,2938.9,0.15160815]
[1769312881135,4.37691478,2940.3,2938.9,0.15160815]
[1769312881433,4.23961396,2940.2,2938.9,0.15160815]
[1769312881638,4.37691478,2940.2,2938.9,0.15160815]
[1769312881841,0.13730082,2940.2,2938.9,0.15160815]
[1769312882135,0.30755082,2941.3,2939.3,0.14756508]
[1769312882340,0.13730082,2941.3,2939.5,0.14756508]
[1769312885340,0.13833699,2941.1,2939.6,1.997]
[1769312886840,0.13833699,2941.1,2939.5,0.14756508]
[1769312887037,0.13833699,2941.1,2939.5,2.14456508]
[1769312888448,0.13833699,2941.1,2939.5,0.14756508]
[1769312888643,0.13833699,2940.9,2939.5,0.14756508]
[1769312889143,0.13833699,2940.9,2939.2,0.1408554]
[1769312889641,1.997,2941.2,2939.2,0.1408554]
[1769312889841,4.23120069,2941.1,2939.2,0.3112254]
[1769312890044,1.997,2941.2,2939.4,0.1408554]
[1769312891144,0.13833699,2941.3,2939.4,0.1408554]
[1769312892549,0.14718025,2941.6,2939.5,0.14881805]
[1769312892847,0.14372858,2941.4,2939.7,0.14881805]
[1769312897150,0.14372858,2941.4,2939.8,1.997]
[1769312902151,0.14372858,2941.4,2939.8,2.14581805]
[1769312905160,4.23620586,2941.3,2939.8,2.14581805]
[1769312905355,0.14372858,2941.4,2939.8,2.14581805]
[1769312905556,4.23644494,2941.3,2939.8,2.14581805]
[1769312905856,0.14372858,2941.4,2939.8,2.14581805]
[1769312906155,4.23644432,2941.3,2939.8,2.14581805]
[1769312906355,0.14372858,2941.4,2939.8,2.14581805]
[1769312906555,4.23700627,2941.3,2939.8,2.14581805]
[1769312906756,0.14372858,2941.4,2939.8,2.14581805]
[1769312906963,4.23700536,2941.3,2939.8,0.14881805]
[1769312907157,0.14372858,2941.4,2939.8,0.14881805]
[1769312907356,4.23761939,2941.3,2939.8,0.14881805]
[1769312907557,0.14372858,2941.4,2939.8,0.14881805]
[1769312907857,4.23761939,2941.3,2939.8,0.14881805]
[1769312908161,0.14372858,2941.4,2939.8,0.14881805]
[1769312908354,4.23829163,2941.3,2939.8,0.14881805]
[1769312908654,0.14372858,2941.4,2939.8,0.14881805]
[1769312908854,4.38202065,2941.3,2939.8,0.14881805]
[1769312909055,0.14372858,2941.3,2939.8,0.14881805]
[1769312909759,4.239022,2941.2,2939.8,0.14881805]
[1769312909949,0.14372858,2941.3,2939.8,0.14881805]
[1769312910150,4.23902242,2941.2,2939.8,0.14881805]
[1769312910354,0.14372858,2941.3,2939.8,0.14881805]
[1769312910561,4.23921546,2941.2,2939.8,0.14881805]
[1769312910757,0.14372858,2941.3,2939.8,0.14881805]
[1769312910961,0.14372858,2941.1,2939.8,0.14881805]
[1769312911157,4.24135793,2941.0,2939.8,0.14881805]
[1769312911355,0.14372858,2941.1,2939.8,0.14881805]
[1769312911556,4.24134719,2941.0,2939.8,0.14881805]
[1769312911864,0.14372858,2941.1,2939.8,0.14881805]
[1769312912160,4.24133347,2941.0,2939.8,0.14881805]
[1769312912363,4.24133347,2940.9,2939.8,0.14881805]
[1769312912561,0.14372858,2941.1,2939.8,0.14881805]
[1769312912865,4.24579457,2941.0,2939.8,0.14881805]
[1769312913164,4.24579457,2940.9,2939.8,0.14881805]
[1769312913466,0.14516703,2941.0,2939.8,0.14881805]
[1769312913765,4.24577113,2940.9,2939.5,2.14643396]
[1769312913966,0.14516703,2941.0,2939.5,2.14643396]
[1769312914167,4.39093382,2940.9,2939.5,0.14943396]
[1769312914369,4.24576679,2940.8,2939.5,0.14943396]
[1769312914569,0.14516703,2940.9,2939.5,0.14943396]
[1769312914866,4.245544,2940.8,2939.5,0.14943396]
[1769312915160,0.14516703,2940.9,2939.5,0.14943396]
[1769312915366,4.24532779,2940.8,2939.5,0.14943396]
[1769312915562,4.24532779,2940.7,2939.5,0.14943396]
[1769312915761,0.14516703,2940.9,2939.5,0.14943396]
[1769312915964,4.24515766,2940.8,2939.5,0.14943396]
[1769312916163,4.24515766,2940.7,2939.5,0.14943396]
[1769312916462,0.14516703,2940.9,2939.5,0.14943396]
[1769312916669,4.24485958,2940.8,2939.5,0.14943396]
[1769312916868,4.24485958,2940.7,2939.5,0.14943396]
[1769312917066,0.14516703,2940.9,2939.5,0.14943396]
[1769312917265,4.24054031,2940.8,2939.7,0.78672771]
[1769312917565,4.24054031,2940.7,2939.7,0.78672771]
[1769312917766,0.14516703,2940.9,2939.7,0.78672771]
[1769312917967,4.24054132,2940.8,2939.7,0.78672771]
[1769312918170,4.24054132,2940.7,2939.7,0.78672771]
[1769312918370,0.14516703,2940.9,2939.7,0.78672771]
[1769312918562,4.24058893,2940.8,2939.7,0.78672771]
[1769312918762,4.24058893,2940.7,2939.7,0.78672771]
[1769312918960,0.14516703,2940.9,2939.7,0.78672771]
[1769312919159,4.24058837,2940.8,2939.7,0.78672771]
[1769312919366,4.24058837,2940.7,2939.7,0.78672771]
[1769312919563,0.14516703,2940.8,2939.7,0.78672771]
[1769312919767,0.14516703,2940.7,2939.7,0.78672771]
[1769312922369,0.14516703,2940.7,2939.4,0.31979396]
[1769312922564,0.14516703,2941.0,2939.6,0.78672771]
[1769312922767,4.23974378,2940.9,2940.2,0.78672771]
[1769312922972,0.31541703,2941.3,2940.2,0.78672771]
[1769312923174,4.24018646,2941.2,2940.2,0.78672771]
[1769312923372,4.24018646,2941.1,2940.2,0.78672771]
[1769312923576,4.24018646,2941.0,2940.0,0.78672771]
[1769312923772,0.31541703,2941.3,2940.0,0.78672771]
[1769312924068,4.24023751,2941.2,2940.0,0.78672771]
[1769312924273,4.24023751,2941.1,2940.0,0.78672771]
[1769312924473,4.24023751,2941.0,2940.0,0.78672771]
[1769312924674,0.31541703,2941.3,2940.0,0.78672771]
[1769312924980,4.24031345,2941.2,2940.0,0.78672771]
[1769312925178,4.24031345,2941.1,2940.0,0.78672771]
[1769312925378,4.24031345,2941.0,2940.0,0.78672771]
[1769312925576,0.14516703,2941.2,2940.0,0.78672771]
[1769312925769,4.24040619,2941.1,2940.0,0.78672771]
[1769312925976,4.24040619,2941.0,2940.0,0.78672771]
[1769312926174,0.14516703,2941.2,2940.0,0.78672771]
[1769312926381,4.2405122,2941.1,2940.0,0.78672771]
[1769312926581,4.2405122,2941.0,2940.0,0.78672771]
[1769312926788,0.14516703,2941.2,2940.0,0.78672771]
[1769312926981,4.24050587,2941.1,2940.0,0.78672771]
[1769312927181,4.24050587,2941.0,2940.0,0.78672771]
[1769312927382,0.14516703,2941.2,2940.0,0.78672771]
[1769312927583,4.24062275,2941.1,2940.0,0.78672771]
[1769312927882,4.24062275,2941.0,2940.0,0.78672771]
[1769312928078,0.14516703,2941.2,2940.0,0.78672771]
[1769312928278,4.24075198,2941.1,2940.3,0.78672771]
[1769312928478,0.1486187,2941.6,2940.3,0.78672771]
[1769312928690,4.24131821,2941.5,2940.5,0.78672771]
[1769312928887,4.24131821,2941.4,2940.5,0.78672771]
[1769312929088,4.24131821,2941.3,2940.5,0.78672771]
[1769312929386,4.24131821,2941.2,2940.5,0.78672771]
[1769312929589,0.1486187,2941.6,2940.5,0.78672771]
[1769312929788,4.24120289,2941.5,2940.5,0.78672771]
[1769312929983,4.24120289,2941.4,2940.5,0.78672771]
[1769312930184,4.24120289,2941.3,2940.5,0.78672771]
[1769312930384,4.24120289,2941.2,2940.5,0.78672771]
[1769312930584,0.1486187,2941.6,2940.5,0.78672771]
[1769312930793,4.24108641,2941.5,2940.5,0.78672771]
[1769312931087,0.1486187,2941.6,2940.7,0.78672771]
[1769312931088,4.24108641,2941.4,2940.7,0.78672771]
[1769312931390,0.00345167,2941.6,2940.7,0.78672771]
[1769312931590,4.24094177,2941.5,2940.7,0.78672771]
[1769312931782,0.00345167,2941.6,2940.7,0.78672771]
[1769312931983,4.24094338,2941.5,2940.7,0.78672771]
[1769312932189,0.00345167,2941.6,2940.7,0.78672771]
[1769312936897,0.00345167,2941.6,2940.9,0.78672771]
[1769312940401,1.10208474,2942.4,2941.1,0.93616167]
[1769312940699,4.23600201,2942.3,2941.1,0.93616167]
[1769312940912,4.23600201,2942.2,2941.1,0.93616167]
[1769312941089,4.23600201,2942.1,2941.1,0.93616167]
[1769312941292,4.23600201,2942.0,2941.1,0.93616167]
[1769312941487,0.00352745,2942.0,2941.1,0.15196465]
[1769312941700,0.00352745,2942.0,2941.3,0.78672771]
[1769312941903,0.00352745,2942.0,2941.1,0.15196465]
[1769312944003,0.17017,2942.8,2941.1,0.15196465]
[1769312944004,0.14512512,2943.0,2941.6,0.9241078]
[1769312944301,4.23495606,2942.9,2941.6,0.9241078]
[1769312944501,4.23495606,2942.8,2941.6,0.9241078]
[1769312944799,4.23495606,2942.7,2941.6,0.9241078]
[1769312945000,4.23495606,2942.6,2941.6,0.9241078]
[1769312945202,0.00284136,2942.7,2941.6,0.9241078]
[1769312945401,4.23198247,2942.6,2941.6,0.9241078]
[1769312945592,0.00284136,2942.7,2941.6,0.9241078]
[1769312945792,4.23198572,2942.6,2941.6,0.9241078]
[1769312945992,0.00284136,2942.7,2941.6,0.9241078]
[1769312946196,4.23198559,2942.6,2941.6,0.9241078]
[1769312946393,0.00284136,2942.7,2941.6,0.9241078]
[1769312946692,4.23096848,2942.6,2941.6,0.9241078]
[1769312946896,0.00284136,2942.7,2941.6,0.9241078]
[1769312947093,4.23096931,2942.6,2941.8,0.78672771]
[1769312947300,0.00284136,2942.7,2941.8,0.9241078]
[1769312948596,0.00284136,2942.7,2942.0,0.78672771]
[1769312948908,0.00284136,2942.7,2941.8,0.13738009]
[1769312951710,0.14512512,2943.4,2941.8,0.13738009]
[1769312952009,4.21628448,2943.3,2941.8,0.13738009]
[1769312952209,4.21628448,2943.2,2941.8,0.13738009]
[1769312952408,4.21628448,2943.1,2941.8,0.13738009]
[1769312952602,0.14512512,2943.4,2941.8,0.13738009]
[1769312952603,4.21628448,2943.0,2941.8,0.13738009]
[1769312952803,0.00345765,2943.1,2941.8,0.13738009]
[1769312953104,4.21003114,2943.0,2941.8,0.13738009]
[1769312953303,0.00345765,2943.1,2941.8,0.13738009]
[1769312953502,4.20027974,2943.0,2941.8,0.13738009]
[1769312953711,0.00345765,2943.1,2941.8,0.13738009]
[1769312954011,4.2002698,2943.0,2941.6,0.78550889]
[1769312954310,0.14066084,2943.1,2941.6,0.93530451]
[1769312954505,4.2002059,2943.0,2941.6,0.93530451]
[1769312954702,0.14066084,2943.1,2941.6,0.93530451]
[1769312954903,0.14066084,2943.1,2941.7,0.14979562]
[1769312956110,4.18674099,2943.0,2941.7,0.14979562]
[1769312956298,0.14066084,2943.1,2941.7,0.14979562]
[1769312956504,4.18631657,2943.0,2941.7,0.14979562]
[1769312956704,0.14066084,2943.1,2941.7,0.14979562]
[1769312957004,0.13720319,2942.9,2941.5,0.17024]
[1769312958013,0.13720319,2942.9,2941.6,0.14979562]
[1769312958512,0.14066084,2943.1,2941.6,0.14979562]
[1769312969122,4.19738318,2943.0,2941.7,0.14979562]
[1769312969321,0.14066084,2943.1,2941.7,0.14979562]
[1769312969520,4.19743011,2943.0,2941.7,0.14979562]
[1769312969824,0.14066084,2943.1,2941.7,0.14979562]
[1769312971218,4.19889168,2943.0,2941.7,0.14979562]
[1769312971420,0.14066084,2943.1,2941.7,0.14979562]
[1769312971620,4.19889168,2943.0,2941.7,0.14979562]
[1769312971821,0.14066084,2943.1,2941.7,0.14979562]
[1769312972022,4.19889546,2943.0,2941.7,0.14979562]
[1769312972222,0.14066084,2943.1,2941.7,0.14979562]
[1769312972523,4.20002962,2943.0,2941.7,0.14979562]
[1769312972724,0.00345765,2943.1,2941.7,0.14979562]
[1769312972924,4.20003489,2943.0,2941.7,0.14979562]
[1769312973114,0.00345765,2943.1,2941.7,0.14979562]
[1769312973319,4.20146958,2943.0,2941.7,0.14979562]
[1769312973514,0.00345765,2943.1,2941.7,0.14979562]
[1769312973718,4.20147061,2943.0,2941.7,0.14979562]
[1769312973922,0.00345765,2943.1,2941.7,0.14979562]
[1769312974222,4.20147092,2943.0,2941.7,0.14979562]
[1769312974418,0.00345765,2943.1,2941.7,0.14979562]
[1769312974618,4.20211975,2943.0,2941.7,0.14979562]
[1769312974824,0.00345765,2943.1,2941.7,0.14979562]
[1769312975025,4.20212021,2943.0,2941.7,0.14979562]
[1769312975224,4.20287982,2942.9,2941.7,0.14979562]
[1769312975425,0.00345765,2943.1,2941.7,0.14979562]
[1769312975633,4.20291205,2943.0,2941.7,0.14979562]
[1769312975820,4.20291205,2942.9,2941.7,0.14979562]
[1769312976020,0.00345765,2943.1,2941.7,0.14979562]
[1769312976229,4.20300103,2943.0,2941.7,0.14979562]
[1769312976426,4.20300103,2942.9,2941.7,0.14979562]
[1769312976626,0.00345765,2943.1,2941.7,0.14979562]
[1769312976829,4.20412415,2943.0,2941.7,0.14979562]
[1769312977126,4.20412415,2942.9,2941.7,0.14979562]
[1769312977326,0.00345765,2943.1,2941.7,0.14979562]
[1769312977523,4.19784431,2943.0,2941.7,0.14979562]
[1769312977716,4.19784431,2942.9,2941.7,0.14979562]
[1769312977920,0.00345765,2943.1,2941.7,0.14979562]
[1769312978123,4.19784824,2943.0,2941.7,0.14979562]
[1769312978325,4.19784824,2942.9,2941.7,0.14979562]
[1769312978526,0.00345765,2943.1,2941.7,0.14979562]
[1769312978726,4.19851412,2943.0,2941.7,0.14979562]
[1769312978930,4.19851412,2942.9,2941.7,0.14979562]
[1769312979128,0.00345765,2943.1,2941.7,0.14979562]
[1769312979329,4.19854552,2943.0,2941.7,0.14979562]
[1769312979528,4.19854552,2942.9,2941.7,0.14979562]
[1769312979828,0.00345765,2943.1,2941.7,0.14979562]
[1769312980030,4.19890804,2943.0,2941.7,0.14979562]
[1769312980231,4.19890804,2942.9,2941.7,0.14979562]
[1769312980431,0.00345765,2943.1,2941.7,0.14979562]
[1769312980727,4.19938079,2943.0,2941.7,0.14979562]
[1769312980933,4.19938079,2942.9,2941.7,0.14979562]
[1769312981133,0.00345765,2943.1,2941.7,0.14979562]
[1769312981328,4.19993664,2943.0,2941.7,0.14979562]
[1769312981628,4.19993664,2942.9,2941.7,0.14979562]
[1769312981828,0.00345765,2943.1,2941.7,0.14979562]
[1769312982030,4.19992759,2943.0,2941.7,0.14979562]
[1769312982237,4.19992759,2942.9,2941.7,0.14979562]
[1769312982438,0.00345765,2943.1,2941.7,0.14979562]
[1769312982641,4.20030374,2943.0,2941.7,0.14979562]
[1769312982936,4.20030374,2942.9,2941.7,0.14979562]
[1769312983137,0.00345765,2943.1,2941.7,0.14979562]
[1769312983337,4.20077476,2943.0,2941.7,0.14979562]
[1769312983538,4.20077476,2942.9,2941.7,0.14979562]
[1769312983842,0.00345765,2943.1,2941.7,0.14979562]
[1769312984039,4.20077425,2943.0,2941.7,0.14979562]
[1769312984239,4.20077425,2942.9,2941.7,0.14979562]
[1769312984439,0.00345765,2943.1,2941.7,0.14979562]
[1769312984736,4.20140388,2943.0,2941.7,0.14979562]
[1769312985038,0.00345765,2943.1,2941.7,0.14979562]
[1769312985039,4.20140388,2942.9,2941.7,0.14979562]
[1769312985237,0.00345765,2943.1,2941.7,0.14979562]
[1769312985441,4.20173061,2943.0,2941.7,0.14979562]
[1769312985644,4.20173061,2942.9,2941.7,0.14979562]
[1769312985940,0.00345765,2943.1,2941.7,0.14979562]
[1769312986142,4.20169892,2943.0,2941.7,0.14979562]
[1769312986338,4.20169892,2942.9,2941.7,0.14979562]
[1769312986538,0.00345765,2943.1,2941.7,0.14979562]
[1769312986734,4.20209842,2943.0,2941.7,0.14979562]
[1769312986935,4.20209842,2942.9,2941.7,0.14979562]
[1769312987134,0.00345765,2943.1,2941.7,0.14979562]
[1769312987343,4.20209874,2943.0,2941.7,0.14979562]
[1769312987543,0.00345765,2943.1,2941.7,0.14979562]
[1769312987743,4.20343481,2943.0,2941.7,0.14979562]
[1769312988042,0.00345765,2943.1,2941.7,0.14979562]
[1769312988232,4.20343956,2943.0,2941.7,0.14979562]
[1769312988434,0.00345765,2943.1,2941.7,0.14979562]
[1769312988634,4.20307615,2943.0,2941.7,0.14979562]
[1769312988830,0.00345765,2943.1,2941.7,0.32002562]
[1769312989141,4.20307671,2943.0,2942.0,0.78550889]
[1769312989336,0.00345765,2943.1,2942.1,1.996]
[1769313002256,0.00345765,2943.1,2942.2,0.1507131]
[1769313004056,0.00345765,2943.1,2942.1,1.996]
[1769313004351,0.14108919,2943.1,2941.9,0.17021]
[1769313004750,0.14108919,2943.1,2942.0,1.996]
[1769313005058,0.00345765,2943.1,2942.1,0.14270826]
[1769313010865,0.00345765,2943.1,2942.5,0.78523492]
[1769313013269,0.00345765,2943.1,2942.3,0.78523492]
[1769313014668,0.00345765,2943.1,2941.9,0.17021]
[1769313014669,0.00345765,2943.1,2942.2,1.996]
[1769313018770,0.00345765,2943.1,2942.1,0.78523492]
[1769313022576,0.78523492,2942.9,2941.1,0.15245974]
[1769313022769,0.78523492,2942.3,2941.1,0.15245974]
[1769313024173,0.93292165,2942.3,2941.1,0.00253069]
[1769313025672,0.14768673,2942.3,2941.1,0.00253069]
[1769313032278,0.14768673,2942.3,2941.2,0.78523492]
[1769313048386,0.78523492,2942.6,2941.2,0.78523492]
[1769313048582,4.19090498,2942.5,2941.2,0.78523492]
[1769313048785,0.78523492,2942.6,2941.2,0.78523492]
[1769313048786,4.19090498,2942.4,2941.2,0.78523492]
[1769313049090,0.14267642,2942.5,2941.2,0.78523492]
[1769313049291,4.19267134,2942.4,2941.2,0.78523492]
[1769313049493,0.92791134,2942.6,2941.3,0.14488715]
[1769313049698,0.14267642,2942.4,2941.2,0.78523492]
[1769313050192,4.1947008,2942.3,2941.2,0.78523492]
[1769313050396,0.14267642,2942.4,2941.2,0.78523492]
[1769313050593,4.33755575,2942.3,2941.2,0.78523492]
[1769313050793,0.14267642,2942.3,2941.2,0.78523492]
[1769313051094,4.19797728,2942.2,2941.2,0.78523492]
[1769313051288,0.14267642,2942.3,2941.2,0.78523492]
[1769313051493,4.34064896,2942.2,2941.2,0.78523492]
[1769313051694,0.14267642,2942.2,2941.2,0.78523492]
[1769313052096,4.20505927,2942.1,2941.2,0.78523492]
[1769313052294,0.14267642,2942.2,2941.2,0.78523492]
[1769313052594,4.20506784,2942.1,2941.2,0.78523492]
[1769313052787,0.14267642,2942.2,2941.2,0.78523492]
[1769313052989,4.20506825,2942.1,2941.2,0.78523492]
[1769313053188,0.14267642,2942.2,2941.2,0.78523492]
[1769313053495,4.20519715,2942.1,2941.2,0.78523492]
[1769313053690,0.14267642,2942.2,2941.2,0.78523492]
[1769313053894,4.20519757,2942.1,2941.2,0.78523492]
[1769313054091,0.92791134,2942.6,2941.2,0.78523492]
[1769313054295,4.20519038,2942.5,2941.5,0.78523492]
[1769313054493,4.20519038,2942.4,2941.5,0.78523492]
[1769313054690,4.20519038,2942.3,2941.3,0.78523492]
[1769313054887,0.14267642,2942.6,2941.1,0.78776561]
[1769313054888,4.20519038,2942.2,2941.1,0.78776561]
[1769313055087,4.20519038,2942.1,2941.1,0.78776561]
[1769313055290,0.14267642,2942.6,2941.1,0.78776561]
[1769313055490,4.34787367,2942.5,2941.1,0.78776561]
[1769313055690,4.34787367,2942.4,2941.1,0.78776561]
[1769313055890,4.20519725,2942.3,2941.1,0.78776561]
[1769313056297,4.20519725,2942.3,2941.1,0.00253069]
[1769313056486,4.20519725,2942.3,2941.2,0.78523492]
[1769313058899,4.20519725,2942.3,2941.5,0.78523492]
[1769313059093,4.20519725,2942.2,2941.5,0.78523492]
[1769313059295,4.20519725,2942.1,2941.5,0.78523492]
[1769313059496,2.30884642,2942.7,2941.5,0.78523492]
[1769313059794,4.20548545,2942.6,2941.5,0.78523492]
[1769313059997,4.20548545,2942.5,2941.5,0.78523492]
[1769313060195,4.20548545,2942.4,2941.5,0.78523492]
[1769313060396,4.20548545,2942.3,2941.5,0.78523492]
[1769313060691,4.20548545,2942.2,2941.5,0.78523492]
[1769313060897,4.20548545,2942.1,2941.5,0.78523492]
[1769313061105,2.30884642,2942.7,2941.5,0.78523492]
[1769313061306,4.2055378,2942.6,2941.5,0.78523492]
[1769313061507,4.2055378,2942.5,2941.9,0.78523492]
[1769313061707,0.14267642,2942.9,2941.5,0.93012207]
[1769313061903,0.14267642,2942.7,2941.5,0.78523492]
[1769313062107,4.20618496,2942.6,2941.5,0.78523492]
[1769313062307,4.20413517,2942.5,2941.5,0.78523492]
[1769313062616,0.14267642,2942.7,2941.5,0.78523492]
[1769313062805,4.35295097,2942.6,2941.5,0.78523492]
[1769313063006,4.20412808,2942.5,2941.5,0.78523492]
[1769313067117,0.14882289,2942.6,2941.5,0.78523492]
[1769313071017,0.14882289,2942.6,2941.3,0.14077342]
[1769313072821,4.19108649,2942.5,2941.3,0.14077342]
[1769313073025,0.14882289,2942.6,2941.3,0.14077342]
[1769313073219,4.19102625,2942.5,2941.3,0.14077342]
[1769313073419,0.14882289,2942.6,2941.3,0.14077342]
[1769313073618,4.19103593,2942.5,2941.3,0.14077342]
[1769313073917,0.14882289,2942.6,2941.3,0.14077342]
[1769313074118,4.19103593,2942.5,2941.3,0.14077342]
[1769313074318,0.14882289,2942.6,2941.3,0.14077342]
[1769313074612,4.19101191,2942.5,2941.3,0.14077342]
[1769313074813,0.14882289,2942.6,2941.3,0.14077342]
[1769313075014,4.19101098,2942.5,2941.3,0.14077342]
[1769313075325,0.14882289,2942.6,2941.1,0.95854171]
[1769313075525,0.14046097,2942.4,2941.1,0.95854171]
[1769313076325,0.14046097,2942.4,2941.1,1.10187631]
[1769313080426,0.14046097,2942.9,2941.2,0.1433346]
[1769313080619,4.33183638,2942.8,2941.2,0.1433346]
[1769313080818,4.19137541,2942.7,2941.2,0.1433346]
[1769313081016,4.19137541,2942.6,2941.2,0.1433346]
[1769313081216,4.19137541,2942.5,2941.2,0.1433346]
[1769313081523,0.14046097,2942.8,2941.2,0.1433346]
[1769313081723,4.19164131,2942.7,2941.2,0.1433346]
[1769313081924,4.19164131,2942.6,2941.2,0.1433346]
[1769313082126,4.19164131,2942.5,2941.2,0.1433346]
[1769313082324,0.14046097,2942.8,2941.2,0.1433346]
[1769313082525,4.19195682,2942.7,2941.2,0.1433346]
[1769313082726,4.19195682,2942.6,2941.2,0.1433346]
[1769313083020,4.19195682,2942.5,2941.2,0.1433346]
[1769313083225,0.14046097,2942.8,2941.2,0.1433346]
[1769313083429,4.19230592,2942.7,2941.2,0.1433346]
[1769313083623,4.19230592,2942.6,2941.2,0.1433346]
[1769313083825,4.19230592,2942.5,2941.2,0.1433346]
[1769313084025,0.14046097,2942.8,2941.2,0.1433346]
[1769313084226,4.19260627,2942.7,2941.2,0.1433346]
[1769313084426,4.19260627,2942.6,2941.2,0.1433346]
[1769313084626,4.19260627,2942.5,2941.2,0.1433346]
[1769313084827,0.14046097,2942.8,2941.2,0.1433346]
[1769313085033,4.19270561,2942.7,2941.2,0.1433346]
[1769313085227,4.19270561,2942.6,2941.2,0.1433346]
[1769313085426,4.19270561,2942.5,2941.2,0.1433346]
[1769313085631,0.14046097,2942.3,2941.1,0.00253069]
[1769313085935,0.14046097,2942.1,2940.1,0.1433346]
[1769313086234,0.14046097,2941.9,2940.1,0.1433346]
[1769313086434,0.14046097,2941.7,2940.1,0.1433346]
[1769313086923,0.14046097,2941.7,2940.1,0.14742394]
[1769313099143,0.14046097,2941.7,2940.2,0.14887083]
[1769313102144,2.13292479,2942.1,2940.2,0.14887083]
[1769313102348,4.18819807,2942.0,2940.2,0.14887083]
[1769313102641,0.13692479,2942.0,2940.2,0.14887083]
[1769313105247,4.32642299,2941.9,2940.2,0.14887083]
[1769313105448,0.13692479,2941.9,2940.2,0.14887083]
[1769313105648,0.13692479,2941.9,2940.4,0.14887083]
[1769313106552,0.13692479,2941.7,2940.2,0.17031]
[1769313107949,0.13692479,2941.7,2940.1,0.00408934]
[1769313109655,0.13692479,2941.7,2940.2,0.14887083]
[1769313111166,4.19505351,2941.6,2940.2,0.14887083]
[1769313111465,0.13692479,2941.7,2940.2,0.14887083]
[1769313111667,4.19508462,2941.6,2940.2,0.14887083]
[1769313111966,0.13692479,2941.7,2940.2,0.14887083]
[1769313112264,0.17021,2942.0,2940.2,0.14887083]
[1769313112265,4.33201304,2941.6,2940.2,0.14887083]
[1769313112457,0.13692479,2941.6,2940.2,0.14887083]
[1769313114266,4.19992345,2941.5,2940.2,0.14887083]
[1769313114467,0.13692479,2941.6,2940.2,0.14887083]
[1769313114663,4.19992331,2941.5,2940.2,0.14887083]
[1769313114868,0.13692479,2941.6,2940.2,0.14887083]
[1769313115065,4.19992383,2941.5,2940.2,0.14887083]
[1769313115364,0.13692479,2941.6,2940.2,0.14887083]
[1769313115566,4.2033894,2941.5,2940.2,0.14887083]
[1769313115866,0.13692479,2941.6,2940.2,0.14887083]
[1769313116068,4.20339884,2941.5,2940.2,0.14887083]
[1769313116368,0.13692479,2941.6,2940.2,0.14887083]
[1769313116561,4.20331509,2941.5,2940.2,0.14887083]
[1769313116765,0.13692479,2941.6,2940.2,0.14887083]
[1769313116963,4.20331592,2941.5,2940.2,0.14887083]
[1769313117162,0.13692479,2941.6,2940.2,0.14887083]
[1769313117469,4.20322684,2941.5,2940.2,0.14887083]
[1769313117670,0.13692479,2941.6,2940.2,0.14887083]
[1769313117871,4.20322698,2941.5,2940.2,0.14887083]
[1769313118172,0.13692479,2941.6,2940.2,0.14887083]
[1769313118470,4.20314586,2941.5,2940.2,0.14887083]
[1769313118663,0.13692479,2941.6,2940.2,0.14887083]
[1769313118962,4.20314562,2941.5,2940.2,0.14887083]
[1769313119164,0.13692479,2941.6,2940.2,0.14887083]
[1769313119359,4.20308287,2941.5,2940.2,0.14887083]
[1769313119562,0.13692479,2941.6,2940.2,0.14887083]
[1769313119762,4.20308262,2941.5,2940.2,0.14887083]
[1769313119962,0.13692479,2941.6,2940.2,0.14887083]
[1769313120165,4.20308117,2941.5,2940.2,0.14887083]
[1769313120372,0.13692479,2941.6,2940.2,0.14887083]
[1769313120581,4.20304318,2941.5,2940.2,0.14887083]
[1769313120871,0.13692479,2941.6,2940.2,0.14887083]
[1769313121067,4.20303952,2941.5,2940.2,0.14887083]
[1769313121368,0.13692479,2941.6,2940.2,0.14887083]
[1769313121568,0.30713479,2942.0,2940.2,0.14887083]
[1769313121774,4.20325753,2941.9,2940.2,0.14887083]
[1769313121973,4.20325753,2941.8,2940.2,0.14887083]
[1769313122172,4.20325753,2941.7,2940.2,0.14887083]
[1769313122374,0.13692479,2942.0,2940.6,0.14887083]
[1769313122575,0.13692479,2942.4,2940.6,0.14887083]
[1769313122774,4.20419523,2942.3,2940.6,0.14887083]
[1769313122965,4.20419523,2942.2,2940.6,0.31916083]
[1769313123167,0.13692479,2942.4,2940.7,0.14998577]
[1769313123370,4.20230377,2942.3,2940.9,0.14998577]
[1769313123567,4.20230377,2942.2,2940.9,0.14998577]
[1769313123775,0.13692479,2942.4,2940.9,0.14998577]
[1769313123976,4.20229123,2942.3,2940.9,0.14998577]
[1769313124176,0.13692479,2942.4,2941.0,0.14998577]
[1769313127277,0.13692479,2942.4,2940.7,0.17029]
[1769313127476,0.14231082,2942.2,2940.7,2.16729]
[1769313127672,0.14231082,2942.0,2940.7,2.16729]
[1769313131375,0.14231082,2942.0,2940.7,2.31727577]
[1769313132883,0.14231082,2942.0,2940.9,0.78605363]
[1769313141290,0.78605363,2942.3,2940.9,0.92225343]
[1769313141484,4.18698058,2942.2,2940.9,0.92225343]
[1769313141682,0.78605363,2942.3,2940.9,0.92225343]
[1769313141881,4.18698429,2942.2,2940.9,0.92225343]
[1769313142083,0.92724694,2942.3,2940.9,0.92225343]
[1769313142387,4.18698383,2942.2,2940.9,0.92225343]
[1769313142586,0.92724694,2942.3,2940.9,0.92225343]
[1769313142787,4.18738852,2942.2,2940.9,0.92225343]
[1769313143088,0.92724694,2942.3,2940.9,0.92225343]
[1769313143286,4.18738792,2942.2,2940.9,0.92225343]
[1769313143480,0.92724694,2942.3,2940.9,0.92225343]
[1769313143679,4.18786704,2942.2,2940.9,0.92225343]
[1769313143883,0.92724694,2942.3,2940.9,0.92225343]
[1769313144179,4.18786704,2942.2,2940.9,0.92225343]
[1769313144381,0.92724694,2942.3,2940.9,0.92225343]
[1769313144581,4.18842885,2942.2,2940.9,0.92225343]
[1769313144778,0.92724694,2942.3,2940.9,0.92225343]
[1769313144979,4.18842906,2942.2,2940.9,0.92225343]
[1769313145180,0.92724694,2942.3,2940.9,0.92225343]
[1769313145391,4.18896477,2942.2,2940.9,0.92225343]
[1769313145591,0.92724694,2942.3,2940.9,0.92225343]
[1769313145791,4.1889654,2942.2,2940.9,0.92225343]
[1769313145989,0.92724694,2942.3,2940.9,0.92225343]
[1769313146191,4.18896644,2942.2,2940.9,0.92225343]
[1769313146394,0.92724694,2942.3,2940.9,0.92225343]
[1769313146692,4.18973234,2942.2,2940.9,0.92225343]
[1769313146891,0.92724694,2942.3,2940.9,0.92225343]
[1769313147093,4.18977696,2942.2,2940.9,0.92225343]
[1769313147293,0.92724694,2942.3,2940.9,0.92225343]
[1769313147494,4.19068005,2942.2,2940.9,0.92225343]
[1769313147690,0.92724694,2942.3,2940.9,0.92225343]
[1769313147890,4.19068005,2942.2,2940.9,0.92225343]
[1769313148083,0.92724694,2942.3,2940.9,0.92225343]
[1769313148287,4.19067785,2942.2,2941.1,0.78605363]
[1769313148487,0.14119331,2942.3,2941.1,0.78605363]
[1769313148690,4.19175775,2942.2,2941.1,0.78605363]
[1769313148891,0.14119331,2942.3,2941.1,0.78605363]